fUSD/lending_fUSD_20240419
["ID","MTS","AMOUNT","RATE_DAILY","PERIOD"]
[322970853,1713550242796,-500.0,0.00016438,2]
[322970854,1713550242805,-857.16,0.00016438,2]
[322970855,1713550242815,-500.0,0.00016438,2]
[322970856,1713550242825,-926.62,0.00016438,2]
[322970857,1713550242834,-690.0,0.00016438,2]
[322970858,1713550242845,-500.0,0.00016438,2]
[322970859,1713550242854,-1082.94,0.00016438,2]
[322970860,1713550242864,-500.0,0.00016438,2]
[322970861,1713550242874,-500.0,0.00016438,2]
[322970862,1713550242885,-512.66,0.00016438,2]
[322970863,1713550242895,-593.65,0.00016438,2]
[322970864,1713550242906,-500.0,0.00016438,2]
[322970865,1713550242916,-500.0,0.00016438,2]
[322970866,1713550242926,-500.0,0.00016438,2]
[322970867,1713550242936,-500.0,0.00016438,2]
[322970868,1713550242947,-932.64,0.00016438,2]
[322970869,1713550242958,-1183.71,0.00016438,2]
[322970870,1713550242968,-500.0,0.00016438,2]
[322970871,1713550242978,-500.0,0.00016438,2]
[322970872,1713550242988,-500.0,0.00016438,2]
[322970873,1713550242997,-1284.0,0.00016438,2]
[322970874,1713550243007,-598.0,0.00016438,2]
[322970875,1713550243017,-945.16,0.00016438,2]
[322970876,1713550243029,-533.75,0.00016438,2]
[322970877,1713550243049,-500.0,0.00016438,2]
[322970878,1713550243071,-501.3,0.00016438,2]
[322970879,1713550243094,-500.0,0.00016438,2]
[322970880,1713550243115,-550.25,0.00016438,2]
[322970881,1713550243137,-500.0,0.00016438,2]
[322970882,1713550243160,-500.0,0.00016438,2]
[322970884,1713550243181,-500.0,0.00016438,2]
[322970886,1713550243201,-555.27,0.00016438,2]
[322970888,1713550243225,-500.0,0.00016438,2]
[322970890,1713550243248,-500.0,0.00016438,2]
[322970892,1713550243258,-500.0,0.00016438,2]
[322970894,1713550243267,-500.0,0.00016438,2]
[322970896,1713550243277,-703.87,0.00016438,2]
[322970898,1713550243287,-801.49,0.00016438,2]
[322970900,1713550243296,-994.14,0.00016438,2]
[322970903,1713550243305,-500.0,0.00016438,2]
[322970905,1713550243315,-500.0,0.00016438,2]
[322970907,1713550243325,-554.14,0.00016438,2]
[322970909,1713550243334,-955.89,0.00016438,2]
[322970910,1713550243343,-500.0,0.00016438,2]
[322970912,1713550243352,-500.0,0.00016438,2]
[322970914,1713550243362,-500.0,0.00016438,2]
[322970916,1713550243371,-852.64,0.00016438,2]
[322970917,1713550243380,-510.94,0.00016438,2]
[322970919,1713550243390,-841.55,0.00016438,2]
[322970920,1713550243399,-500.0,0.00016438,2]
[322970921,1713550243408,-1892.65,0.00016438,2]
[322970922,1713550243417,-1107.6,0.00016438,2]
[322970924,1713550243426,-500.0,0.00016438,2]
[322970925,1713550243435,-234.35453742,0.00016438,2]
[322970929,1713550243444,-500.0,0.00016438,2]
[322970931,1713550243453,-500.0,0.00016438,2]
[322970933,1713550243465,-798.01,0.00016438,2]
[322970934,1713550243474,-362.43224262,0.00016438,2]
[322970935,1713550243483,-1004.83,0.00016438,2]
[322970937,1713550243493,-888.98,0.00016438,2]
[322970939,1713550243502,-1537.76,0.00016438,2]
[322970941,1713550243511,-500.0,0.00016438,2]
[322970943,1713550243520,-500.0,0.00016438,2]
[322970945,1713550243529,-500.0,0.00016438,2]
[322970947,1713550243538,-1698.41,0.00016438,2]
[322970949,1713550243548,-924.91,0.00016438,2]
[322970951,1713550243557,-749.46,0.00016438,2]
[322970953,1713550243567,-500.0,0.00016438,2]
[322970955,1713550243576,-551.44,0.00016438,2]
[322970957,1713550243585,-500.0,0.00016438,2]
[322970959,1713550243594,-500.0,0.00016438,2]
[322970961,1713550243604,-500.0,0.00016438,2]
[322970963,1713550243613,-942.85,0.00016438,2]
[322970965,1713550243622,-508.29,0.00016438,2]
[322970967,1713550243631,-1105.39,0.00016438,2]
[322970970,1713550243641,-500.0,0.00016438,2]
[322970973,1713550243650,-966.16,0.00016438,2]
[322970975,1713550243659,-500.0,0.00016438,2]
[322970977,1713550243668,-500.0,0.00016438,2]
[322970979,1713550243678,-500.0,0.00016438,2]
[322970981,1713550243687,-500.0,0.00016438,2]
[322970983,1713550243697,-922.95,0.00016438,2]
[322970985,1713550243708,-500.0,0.00016438,2]
[322970987,1713550243717,-500.0,0.00016438,2]
[322970989,1713550243726,-500.0,0.00016438,2]
[322970990,1713550243735,-500.0,0.00016438,2]
[322970993,1713550243745,-500.0,0.00016438,2]
[322970994,1713550243753,-694.65,0.00016438,2]
[322970996,1713550243763,-500.0,0.00016438,2]
[322970998,1713550243772,-500.0,0.00016438,2]
[322971000,1713550243782,-723.53,0.00016438,2]
[322971002,1713550243791,-538.41,0.00016438,2]
[322971004,1713550243801,-682.23,0.00016438,2]
[322971006,1713550243810,-1202.52,0.00016438,2]
[322971007,1713550243819,-884.55,0.00016438,2]
[322971009,1713550243828,-500.0,0.00016438,2]
[322971011,1713550243837,-500.0,0.00016438,2]
[322971012,1713550243846,-1187.6,0.00016438,2]
[322971013,1713550243855,-500.0,0.00016438,2]
[322971014,1713550243864,-1424.62,0.00016438,2]
[322971015,1713550243873,-500.0,0.00016438,2]
[322971016,1713550243883,-719.74,0.00016438,2]
[322971017,1713550243892,-500.0,0.00016438,2]
[322971018,1713550243901,-756.1,0.00016438,2]
[322971019,1713550243910,-715.22,0.00016438,2]
[322971020,1713550243919,-500.0,0.00016438,2]
[322971021,1713550243929,-500.0,0.00016438,2]
[322971022,1713550243939,-1009.64,0.00016438,2]
[322971023,1713550243949,-691.01,0.00016438,2]
[322971024,1713550243960,-500.0,0.00016438,2]
[322971025,1713550243969,-500.0,0.00016438,2]
[322971026,1713550243978,-500.0,0.00016438,2]
[322971027,1713550243988,-500.0,0.00016438,2]
[322971028,1713550243998,-500.0,0.00016438,2]
[322971029,1713550244007,-500.0,0.00016438,2]
[322971030,1713550244016,-500.0,0.00016438,2]
[322971031,1713550244025,-500.0,0.00016438,2]
[322971032,1713550244034,-1053.92,0.00016438,2]
[322971033,1713550244044,-500.0,0.00016438,2]
[322971034,1713550244053,-500.0,0.00016438,2]
[322971035,1713550244062,-656.46,0.00016438,2]
[322971036,1713550244072,-637.22,0.00016438,2]
[322971037,1713550244081,-1092.46,0.00016438,2]
[322971038,1713550244092,-500.0,0.00016438,2]
[322971039,1713550244103,-500.0,0.00016438,2]
[322971040,1713550244112,-500.0,0.00016438,2]
[322971041,1713550244123,-500.0,0.00016438,2]
[322971042,1713550244133,-500.0,0.00016438,2]
[322971043,1713550244143,-785.68,0.00016438,2]
[322971044,1713550244153,-500.0,0.00016438,2]
[322971045,1713550244163,-500.0,0.00016438,2]
[322971046,1713550244172,-500.0,0.00016438,2]
[322971047,1713550244182,-500.0,0.00016438,2]
[322971048,1713550244195,-500.0,0.00016438,2]
[322971049,1713550244208,-500.0,0.00016438,2]
[322971050,1713550244218,-500.0,0.00016438,2]
[322971051,1713550244227,-634.94,0.00016438,2]
[322971052,1713550244238,-1098.28,0.00016438,2]
[322971053,1713550244248,-771.55,0.00016438,2]
[322971054,1713550244260,-500.0,0.00016438,2]
[322971055,1713550244278,-500.0,0.00016438,2]
[322971056,1713550244291,-370.35756775,0.00016438,2]
[322971057,1713550244304,-500.0,0.00016438,2]
[322971058,1713550244314,-500.0,0.00016438,2]
[322971059,1713550244325,-585.44,0.00016438,2]
[322971060,1713550244338,-2054.36,0.00016438,2]
[322971061,1713550244347,-594.46,0.00016438,2]
[322971062,1713550244356,-500.0,0.00016438,2]
[322971063,1713550244366,-544.46,0.00016438,2]
[322971064,1713550244377,-500.0,0.00016438,2]
[322971065,1713550244386,-1253.75,0.00016438,2]
[322971066,1713550244395,-500.0,0.00016438,2]
[322971067,1713550244404,-500.0,0.00016438,2]
[322971068,1713550244414,-587.67,0.00016438,2]
[322971069,1713550244424,-500.0,0.00016438,2]
[322971070,1713550244433,-500.0,0.00016438,2]
[322971071,1713550244443,-500.0,0.00016438,2]
[322971072,1713550244452,-2100.28,0.00016438,2]
[322971073,1713550244462,-500.0,0.00016438,2]
[322971074,1713550244471,-683.03,0.00016438,2]
[322971075,1713550244482,-500.0,0.00016438,2]
[322971076,1713550244492,-1308.2,0.00016438,2]
[322971077,1713550244502,-500.0,0.00016438,2]
[322971078,1713550244512,-840.15,0.00016438,2]
[322971079,1713550244524,-500.0,0.00016438,2]
[322971080,1713550244533,-1027.08,0.00016438,2]
[322971081,1713550244544,-2360.98,0.00016438,2]
[322971082,1713550244554,-500.0,0.00016438,2]
[322971083,1713550244564,-590.86,0.00016438,2]
[322971084,1713550244573,-783.34,0.00016438,2]
[322971085,1713550244582,-500.0,0.00016438,2]
[322971086,1713550244593,-500.0,0.00016438,2]
[322971087,1713550244603,-500.0,0.00016438,2]
[322971088,1713550244613,-772.28,0.00016438,2]
[322971089,1713550244623,-877.35,0.00016438,2]
[322971090,1713550244632,-500.0,0.00016438,2]
[322971091,1713550244641,-500.0,0.00016438,2]
[322971092,1713550244650,-500.0,0.00016438,2]
[322971093,1713550244660,-507.26,0.00016438,2]
[322971094,1713550244670,-500.0,0.00016438,2]
[322971095,1713550244681,-806.7,0.00016438,2]
[322971096,1713550244690,-2010.23,0.00016438,2]
[322971097,1713550244701,-500.0,0.00016438,2]
[322971098,1713550244713,-903.57,0.00016438,2]
[322971099,1713550244723,-500.0,0.00016438,2]
[322971100,1713550244733,-500.0,0.00016438,2]
[322971101,1713550244743,-540.24,0.00016438,2]
[322971102,1713550244752,-500.0,0.00016438,2]
[322971103,1713550244762,-500.0,0.00016438,2]
[322971104,1713550244772,-500.0,0.00016438,2]
[322971105,1713550244782,-500.0,0.00016438,2]
[322971106,1713550244791,-500.0,0.00016438,2]
[322971107,1713550244800,-1345.99,0.00016438,2]
[322971108,1713550244810,-711.4,0.00016438,2]
[322971109,1713550244819,-952.32,0.00016438,2]
[322971110,1713550244829,-500.0,0.00016438,2]
[322971111,1713550244838,-2599.59,0.00016438,2]
[322971112,1713550244848,-500.0,0.00016438,2]
[322971113,1713550244857,-572.96210354,0.00016438,2]
[322971114,1713550244867,-794.17,0.00016438,2]
[322971115,1713550244876,-500.0,0.00016438,2]
[322971116,1713550244886,-500.0,0.00016438,2]
[322971117,1713550244895,-722.17,0.00016438,2]
[322971118,1713550244905,-500.0,0.00016438,2]
[322971119,1713550244914,-618.03,0.00016438,2]
[322971120,1713550244924,-500.0,0.00016438,2]
[322971121,1713550244933,-500.0,0.00016438,2]
[322971122,1713550244943,-500.0,0.00016438,2]
[322971123,1713550244953,-500.0,0.00016438,2]
[322971124,1713550244969,-500.0,0.00016438,2]
[322971125,1713550244979,-534.09,0.00016438,2]
[322971126,1713550244989,-957.91,0.00016438,2]
[322971127,1713550244999,-500.0,0.00016438,2]
[322971128,1713550245009,-1071.15,0.00016438,2]
[322971129,1713550245018,-986.67,0.00016438,2]
[322971130,1713550245028,-1007.79,0.00016438,2]
[322971131,1713550245037,-500.0,0.00016438,2]
[322971132,1713550245047,-1285.14,0.00016438,2]
[322971133,1713550245057,-500.0,0.00016438,2]
[322971134,1713550245066,-500.0,0.00016438,2]
[322971135,1713550245076,-500.0,0.00016438,2]
[322971136,1713550245085,-500.0,0.00016438,2]
[322971137,1713550245094,-962.42,0.00016438,2]
[322971138,1713550245104,-844.52,0.00016438,2]
[322971139,1713550245115,-758.78,0.00016438,2]
[322971140,1713550245125,-833.9,0.00016438,2]
[322971141,1713550245134,-1615.14,0.00016438,2]
[322971142,1713550245144,-920.81,0.00016438,2]
[322971143,1713550245153,-500.0,0.00016438,2]
[322971144,1713550245163,-1315.55,0.00016438,2]
[322971145,1713550245173,-547.44,0.00016438,2]
[322971146,1713550245185,-964.74,0.00016438,2]
[322971147,1713550245196,-500.0,0.00016438,2]
[322971148,1713550245206,-500.0,0.00016438,2]
[322971149,1713550245221,-972.03,0.00016438,2]
[322971150,1713550245231,-500.0,0.00016438,2]
[322971151,1713550245241,-619.56,0.00016438,2]
[322971152,1713550245251,-500.0,0.00016438,2]
[322971153,1713550245261,-500.0,0.00016438,2]
[322971154,1713550245271,-500.0,0.00016438,2]
[322971155,1713550245280,-500.0,0.00016438,2]
[322971156,1713550245290,-772.39,0.00016438,2]
[322971157,1713550245300,-500.0,0.00016438,2]
[322971158,1713550245310,-1525.67,0.00016438,2]
[322971159,1713550245320,-500.0,0.00016438,2]
[322971160,1713550245329,-996.21,0.00016438,2]
[322971161,1713550245338,-500.0,0.00016438,2]
[322971162,1713550245348,-579.5,0.00016438,2]
[322971163,1713550245357,-611.59,0.00016438,2]
[322971164,1713550245366,-500.0,0.00016438,2]
[322971165,1713550245375,-500.0,0.00016438,2]
[322971166,1713550245385,-500.0,0.00016438,2]
[322971167,1713550245394,-500.0,0.00016438,2]
[322971168,1713550245403,-500.0,0.00016438,2]
[322971169,1713550245412,-500.0,0.00016438,2]
[322971170,1713550245421,-500.0,0.00016438,2]
[322971171,1713550245430,-500.0,0.00016438,2]
[322971172,1713550245440,-500.0,0.00016438,2]
[322971173,1713550245449,-500.0,0.00016438,2]
[322971174,1713550245461,-531.29,0.00016438,2]
[322971175,1713550245470,-500.0,0.00016438,2]
[322971176,1713550245479,-500.0,0.00016438,2]
[322971177,1713550245488,-500.0,0.00016438,2]
[322971178,1713550245497,-500.0,0.00016438,2]
[322971179,1713550245506,-1954.01,0.00016438,2]
[322971180,1713550245515,-658.28,0.00016438,2]
[322971181,1713550245524,-500.0,0.00016438,2]
[322971182,1713550245534,-500.0,0.00016438,2]
[322971183,1713550245542,-1518.32,0.00016438,2]
[322971184,1713550245553,-500.0,0.00016438,2]
[322971185,1713550245562,-500.0,0.00016438,2]
[322971186,1713550245571,-1048.18,0.00016438,2]
[322971187,1713550245580,-500.0,0.00016438,2]
[322971188,1713550245589,-500.0,0.00016438,2]
[322971189,1713550245597,-511.04,0.00016438,2]
[322971190,1713550245607,-500.0,0.00016438,2]
[322971191,1713550245617,-500.0,0.00016438,2]
[322971192,1713550245626,-514.86,0.00016438,2]
[322971193,1713550245635,-770.24,0.00016438,2]
[322971194,1713550245644,-768.73,0.00016438,2]
[322971195,1713550245653,-2185.37,0.00016438,2]
[322971196,1713550245663,-654.31,0.00016438,2]
[322971197,1713550245672,-500.0,0.00016438,2]
[322971198,1713550245681,-2646.29,0.00016438,2]
[322971199,1713550245691,-1401.76,0.00016438,2]
[322971200,1713550245700,-760.19,0.00016438,2]
[322971201,1713550245710,-500.0,0.00016438,2]
[322971202,1713550245720,-500.0,0.00016438,2]
[322971203,1713550245729,-520.18,0.00016438,2]
[322971204,1713550245739,-500.0,0.00016438,2]
[322971205,1713550245748,-1041.49,0.00016438,2]
[322971206,1713550245758,-500.0,0.00016438,2]
[322971207,1713550245767,-1569.79,0.00016438,2]
[322971208,1713550245777,-500.0,0.00016438,2]
[322971209,1713550245786,-500.0,0.00016438,2]
[322971210,1713550245796,-745.4,0.00016438,2]
[322971211,1713550245805,-1023.62,0.00016438,2]
[322971212,1713550245815,-572.29,0.00016438,2]
[322971213,1713550245825,-734.01,0.00016438,2]
[322971214,1713550245835,-500.0,0.00016438,2]
[322971215,1713550245845,-500.0,0.00016438,2]
[322971216,1713550245854,-602.42,0.00016438,2]
[322971217,1713550245864,-2446.96,0.00016438,2]
[322971218,1713550245874,-500.0,0.00016438,2]
[322971219,1713550245884,-500.0,0.00016438,2]
[322971220,1713550245893,-632.05,0.00016438,2]
[322971221,1713550245903,-737.58,0.00016438,2]
[322971222,1713550245912,-500.0,0.00016438,2]
[322971223,1713550245922,-500.0,0.00016438,2]
[322971224,1713550245932,-1084.65,0.00016438,2]
[322971225,1713550245941,-500.0,0.00016438,2]
[322971226,1713550245950,-500.0,0.00016438,2]
[322971227,1713550245961,-500.0,0.00016438,2]
[322971228,1713550245970,-500.0,0.00016438,2]
[322971229,1713550245980,-868.78,0.00016438,2]
[322971230,1713550245989,-150.0,0.00016438,2]
[322971231,1713550245998,-500.0,0.00016438,2]
[322971232,1713550246008,-500.0,0.00016438,2]
[322971233,1713550246017,-810.62,0.00016438,2]
[322971234,1713550246027,-2149.31,0.00016438,2]
[322971235,1713550246036,-500.0,0.00016438,2]
[322971236,1713550246048,-500.0,0.00016438,2]
[322971237,1713550246058,-1320.23,0.00016438,2]
[322971238,1713550246068,-500.0,0.00016438,2]
[322971239,1713550246078,-500.0,0.00016438,2]
[322971240,1713550246088,-500.0,0.00016438,2]
[322971241,1713550246098,-555.55,0.00016438,2]
[322971243,1713550246107,-779.04,0.00016438,2]
[322971244,1713550246117,-515.7,0.00016438,2]
[322971246,1713550246127,-2723.87,0.00016438,2]
[322971248,1713550246137,-923.49,0.00016438,2]
[322971250,1713550246147,-1238.11,0.00016438,2]
[322971252,1713550246156,-500.0,0.00016438,2]
[322971254,1713550246166,-675.9,0.00016438,2]
[322971255,1713550246175,-500.0,0.00016438,2]
[322971257,1713550246186,-1208.89,0.00016438,2]
[322971259,1713550246197,-500.0,0.00016438,2]
[322971260,1713550246207,-500.0,0.00016438,2]
[322971262,1713550246219,-1568.36,0.00016438,2]
[322971263,1713550246230,-834.91,0.00016438,2]
[322971264,1713550246239,-500.0,0.00016438,2]
[322971265,1713550246248,-500.0,0.00016438,2]
[322971266,1713550246257,-500.0,0.00016438,2]
[322971267,1713550246269,-500.0,0.00016438,2]
[322971268,1713550246278,-180.04220044,0.00016438,2]
[322971269,1713550246287,-500.0,0.00016438,2]
[322971270,1713550246297,-500.0,0.00016438,2]
[322971271,1713550246306,-594.47,0.00016438,2]
[322971272,1713550246316,-2192.7,0.00016438,2]
[322971273,1713550246325,-500.0,0.00016438,2]
[322971274,1713550246334,-500.0,0.00016438,2]
[322971275,1713550246343,-1031.65,0.00016438,2]
[322971276,1713550246352,-500.0,0.00016438,2]
[322971277,1713550246362,-500.0,0.00016438,2]
[322971278,1713550246371,-708.17,0.00016438,2]
[322971279,1713550246381,-750.6,0.00016438,2]
[322971280,1713550246390,-999.68,0.00016438,2]
[322971281,1713550246402,-690.66,0.00016438,2]
[322971282,1713550246411,-500.0,0.00016438,2]
[322971283,1713550246421,-500.0,0.00016438,2]
[322971284,1713550246430,-769.32,0.00016438,2]
[322971285,1713550246439,-2098.81,0.00016438,2]
[322971286,1713550246449,-500.0,0.00016438,2]
[322971287,1713550246458,-1810.63,0.00016438,2]
[322971288,1713550246469,-500.0,0.00016438,2]
[322971289,1713550246478,-739.95,0.00016438,2]
[322971290,1713550246486,-500.0,0.00016438,2]
[322971291,1713550246495,-523.79,0.00016438,2]
[322971292,1713550246504,-807.56,0.00016438,2]
[322971293,1713550246513,-959.33,0.00016438,2]
[322971294,1713550246522,-500.0,0.00016438,2]
[322971295,1713550246532,-500.0,0.00016438,2]
[322971296,1713550246541,-500.0,0.00016438,2]
[322971297,1713550246550,-886.7,0.00016438,2]
[322971298,1713550246560,-500.0,0.00016438,2]
[322971299,1713550246569,-500.0,0.00016438,2]
[322971300,1713550246578,-904.99,0.00016438,2]
[322971301,1713550246588,-500.0,0.00016438,2]
[322971302,1713550246597,-500.0,0.00016438,2]
[322971303,1713550246606,-1811.92,0.00016438,2]
[322971304,1713550246615,-611.99,0.00016438,2]
[322971305,1713550246624,-500.0,0.00016438,2]
[322971306,1713550246633,-500.0,0.00016438,2]
[322971307,1713550246642,-734.86,0.00016438,2]
[322971308,1713550246652,-500.0,0.00016438,2]
[322971309,1713550246661,-531.95,0.00016438,2]
[322971310,1713550246670,-500.0,0.00016438,2]
[322971311,1713550246680,-1462.76,0.00016438,2]
[322971312,1713550246689,-500.0,0.00016438,2]
[322971313,1713550246698,-870.84,0.00016438,2]
[322971314,1713550246707,-756.51,0.00016438,2]
[322971315,1713550246720,-500.0,0.00016438,2]
[322971316,1713550246730,-500.0,0.00016438,2]
[322971317,1713550246739,-556.84,0.00016438,2]
[322971318,1713550246749,-550.83,0.00016438,2]
[322971319,1713550246758,-500.0,0.00016438,2]
[322971320,1713550246768,-500.0,0.00016438,2]
[322971342,1713550247025,-763.21,0.00016438,2]
[322971344,1713550247036,-500.0,0.00016438,2]
[322971347,1713550247047,-500.0,0.00016438,2]
[322971348,1713550247058,-500.0,0.00016438,2]
[322971350,1713550247069,-1949.05,0.00016438,2]
[322971353,1713550247079,-2310.93,0.00016438,2]
[322971355,1713550247089,-693.55,0.00016438,2]
[322971357,1713550247101,-172.12316096,0.00016438,2]
[322971359,1713550247110,-500.0,0.00016438,2]
[322971361,1713550247120,-500.0,0.00016438,2]
[322971363,1713550247130,-3279.49,0.00016438,2]
[322971364,1713550247140,-500.0,0.00016438,2]
[322971366,1713550247149,-1279.96,0.00016438,2]
[322971368,1713550247159,-500.0,0.00016438,2]
[322971371,1713550247169,-500.0,0.00016438,2]
[322971372,1713550247178,-10148.51,0.00016438,2]
[322971373,1713550247190,-500.0,0.00016438,2]
[322971374,1713550247201,-500.0,0.00016438,2]
[322971375,1713550247213,-1245.05,0.00016438,2]
[322971376,1713550247223,-504.45,0.00016438,2]
[322971377,1713550247233,-631.16,0.00016438,2]
[322971378,1713550247242,-500.0,0.00016438,2]
[322971379,1713550247251,-2432.79,0.00016438,2]
[322971380,1713550247261,-500.0,0.00016438,2]
[322971381,1713550247271,-709.19,0.00016438,2]
[322971382,1713550247280,-500.0,0.00016438,2]
[322971383,1713550247290,-500.0,0.00016438,2]
[322971384,1713550247299,-500.0,0.00016438,2]
[322971385,1713550247309,-12548.21,0.00016438,2]
[322971386,1713550247318,-500.0,0.00016438,2]
[322971387,1713550247328,-2019.79,0.00016438,2]
[322971388,1713550247339,-4021.15,0.00016438,2]
[322971389,1713550247349,-500.0,0.00016438,2]
[322971390,1713550247358,-500.0,0.00016438,2]
[322971391,1713550247368,-500.0,0.00016438,2]
[322971392,1713550247378,-4788.06,0.00016438,2]
[322971393,1713550247388,-620.71,0.00016438,2]
[322971394,1713550247398,-712.22,0.00016438,2]
[322971395,1713550247408,-763.52,0.00016438,2]
[322971396,1713550247418,-1962.6,0.00016438,2]
[322971397,1713550247427,-500.0,0.00016438,2]
[322971398,1713550247437,-612.79,0.00016438,2]
[322971399,1713550247446,-3436.05,0.00016438,2]
[322971400,1713550247456,-500.0,0.00016438,2]
[322971401,1713550247469,-955.8,0.00016438,2]
[322971402,1713550247479,-500.0,0.00016438,2]
[322971403,1713550247488,-1158.7,0.00016438,2]
[322971404,1713550247498,-1982.57,0.00016438,2]
[322971405,1713550247509,-1405.49,0.00016438,2]
[322971406,1713550247521,-500.0,0.00016438,2]
[322971407,1713550247531,-500.0,0.00016438,2]
[322971408,1713550247541,-500.0,0.00016438,2]
[322971409,1713550247551,-1522.02,0.00016438,2]
[322971410,1713550247560,-2447.66,0.00016438,2]
[322971411,1713550247573,-1289.86,0.00016438,2]
[322971412,1713550247582,-500.0,0.00016438,2]
[322971413,1713550247592,-31723.29,0.00016438,2]
[322971414,1713550247602,-3281.14,0.00016438,2]
[322971415,1713550247612,-500.0,0.00016438,2]
[322971416,1713550247621,-500.0,0.00016438,2]
[322971417,1713550247632,-500.0,0.00016438,2]
[322971418,1713550247643,-500.0,0.00016438,2]
[322971419,1713550247655,-500.0,0.00016438,2]
[322971420,1713550247666,-4768.4,0.00016438,2]
[322971421,1713550247675,-500.0,0.00016438,2]
[322971422,1713550247687,-500.0,0.00016438,2]
[322971423,1713550247697,-2704.58,0.00016438,2]
[322971424,1713550247706,-500.0,0.00016438,2]
[322971425,1713550247719,-3050.03,0.00016438,2]
[322971426,1713550247729,-1276.09,0.00016438,2]
[322971427,1713550247739,-895.96,0.00016438,2]
[322971428,1713550247750,-29200.06,0.00016438,2]
[322971429,1713550247759,-2277.68,0.00016438,2]
[322971430,1713550247770,-2080.16,0.00016438,2]
[322971431,1713550247781,-500.0,0.00016438,2]
[322971432,1713550247792,-2641.88,0.00016438,2]
[322971433,1713550247803,-500.0,0.00016438,2]
[322971434,1713550247814,-890.03,0.00016438,2]
[322971435,1713550247826,-500.0,0.00016438,2]
[322971436,1713550247837,-500.0,0.00016438,2]
[322971437,1713550247846,-500.0,0.00016438,2]
[322971438,1713550247856,-1630.17,0.00016438,2]
[322971439,1713550247866,-500.0,0.00016438,2]
[322971440,1713550247876,-698.87,0.00016438,2]
[322971441,1713550247886,-500.0,0.00016438,2]
[322971442,1713550247896,-2038.63,0.00016438,2]
[322971443,1713550247906,-2024.21,0.00016438,2]
[322971444,1713550247915,-500.0,0.00016438,2]
[322971445,1713550247925,-2835.42,0.00016438,2]
[322971446,1713550247934,-1254.65,0.00016438,2]
[322971447,1713550247943,-650.6,0.00016438,2]
[322971448,1713550247953,-1597.4,0.00016438,2]
[322971449,1713550247965,-1787.25,0.00016438,2]
[322971450,1713550247974,-500.0,0.00016438,2]
[322971451,1713550247983,-500.0,0.00016438,2]
[322971452,1713550247991,-1092.26,0.00016438,2]
[322971453,1713550248001,-1938.92,0.00016438,2]
[322971454,1713550248010,-1327.63,0.00016438,2]
[322971455,1713550248020,-500.0,0.00016438,2]
[322971456,1713550248029,-751.58,0.00016438,2]
[322971457,1713550248038,-500.0,0.00016438,2]
[322971458,1713550248047,-500.0,0.00016438,2]
[322971459,1713550248057,-3205.55,0.00016438,2]